bitfinex-derivatives/quotes_BTCF0:USTF0_20250405
["timestamp","ask_amount","ask_price","bid_price","bid_amount"]
[1743859674016,0.36402,82868.0,82867.0,0.0844955]
[1743859676920,0.36402,82868.0,82866.0,0.03911012]
[1743859677116,0.36402,82868.0,82867.0,0.0844955]
[1743859679828,0.36402,82868.0,82859.0,0.00018097]
[1743859680126,0.36402,82868.0,82838.0,0.00181131]
[1743859680127,0.3608,82860.0,82855.0,8e-05]
[1743859680327,0.1754,82859.0,82852.0,8e-05]
[1743859680525,0.3608,82853.0,82850.0,0.59480349]
[1743859680828,0.1197,82852.0,82844.0,0.0845198]
[1743859681032,0.3608,82845.0,82843.0,0.04244127]
[1743859681234,0.177,82844.0,82843.0,0.12696207]
[1743859681531,0.457,82844.0,82843.0,0.12696207]
[1743859683037,0.457,82844.0,82843.0,0.15110588]
[1743859685932,0.457,82844.0,82843.0,0.0845208]
[1743859686133,0.457,82844.0,82843.0,0.1267811]
[1743859687425,0.4013,82844.0,82843.0,0.1267811]
[1743859687627,0.28,82844.0,82843.0,0.1267811]
[1743859687822,0.28140001,82844.0,82843.0,0.1267811]
[1743859688221,0.28140001,82844.0,82843.0,0.2178811]
[1743859688926,0.28140001,82844.0,82843.0,0.1131]
[1743859689131,0.28140001,82844.0,82843.0,0.05272301]
[1743859689322,0.39540001,82844.0,82843.0,0.05272301]
[1743859689733,0.39540001,82844.0,82843.0,0.13724381]
[1743859691623,0.28140001,82844.0,82843.0,0.13724381]
[1743859692024,0.28140001,82844.0,82843.0,0.12998682]
[1743859692230,0.28140001,82844.0,82843.0,0.33938682]
[1743859692729,0.26193001,82844.0,82843.0,0.33938682]
[1743859693335,0.26193001,82844.0,82843.0,0.40215245]
[1743859693635,0.20607227,82844.0,82843.0,1.01843245]
[1743859693835,0.20467226,82844.0,82843.0,1.01843245]
[1743859694039,0.20467226,82844.0,82843.0,0.86843245]
[1743859695133,0.20467226,82844.0,82843.0,0.87608643]
[1743859695327,0.20467226,82844.0,82843.0,0.93578643]
[1743859695531,0.3608,82853.0,82852.0,0.0845116]
[1743859695727,0.53216,82853.0,82852.0,0.0845116]
[1743859695928,0.53216,82853.0,82852.0,0.1819116]
[1743859698249,0.53216,82853.0,82852.0,0.1194]
[1743859698437,0.53216,82853.0,82852.0,0.2039116]
[1743859698739,0.53216,82853.0,82852.0,0.0845116]
[1743859699040,0.53216,82853.0,82852.0,0.1459116]
[1743859700327,0.53216,82853.0,82852.0,0.2062116]
[1743859700534,0.53216,82853.0,82852.0,0.0845116]
[1743859700731,0.53216,82853.0,82852.0,0.1376316]
[1743859701224,0.53216,82853.0,82852.0,0.05312]
[1743859701429,0.53216,82853.0,82852.0,0.1376316]
[1743859702730,0.53216,82853.0,82852.0,0.0845116]
[1743859703639,0.53216,82853.0,82852.0,0.0645116]
[1743859704242,0.53216,82853.0,82851.0,0.0422563]
[1743859704440,0.1232,82852.0,82851.0,0.1267689]
[1743859704627,0.3532,82852.0,82851.0,0.1267689]
[1743859705439,0.2919,82852.0,82851.0,0.1267689]
[1743859705634,0.2919,82852.0,82851.0,0.2579689]
[1743859706033,0.29322,82852.0,82851.0,0.2579689]
[1743859706739,0.23132,82852.0,82851.0,0.2579689]
[1743859707338,0.23132,82852.0,82851.0,0.28210451]
[1743859707644,0.29622,82852.0,82851.0,0.28210451]
[1743859708241,0.23132,82852.0,82851.0,0.28210451]
[1743859710041,0.29472,82852.0,82851.0,0.28210451]
[1743859710243,0.29472,82852.0,82851.0,0.2157126]
[1743859710444,0.29472,82852.0,82851.0,0.2579689]
[1743859711346,0.29472,82852.0,82851.0,0.2359689]
[1743859713245,0.29472,82852.0,82851.0,0.17559191]
[1743859716247,0.36142,82852.0,82851.0,0.17559191]
[1743859716440,0.36142,82852.0,82851.0,0.17731492]
[1743859718045,0.36142,82852.0,82851.0,0.11521492]
[1743859718249,0.36142,82852.0,82851.0,0.16833492]
[1743859719043,0.36142,82852.0,82851.0,0.14633492]
[1743859719446,0.36142,82852.0,82851.0,0.11735053]
[1743859719646,0.36142,82852.0,82851.0,0.17047053]
[1743859722054,0.36142,82852.0,82851.0,0.11735053]
[1743859722254,0.36142,82852.0,82851.0,0.17047053]
[1743859722451,0.36142,82852.0,82851.0,0.19460614]
[1743859724552,0.36142,82852.0,82851.0,0.25610614]
[1743859724752,0.36142,82852.0,82851.0,0.31870614]
[1743859725055,0.36142,82852.0,82851.0,1.83597666]
[1743859725255,0.29472,82852.0,82851.0,1.83597666]
[1743859725558,0.29472,82852.0,82851.0,1.8806216]
[1743859726754,0.29472,82852.0,82851.0,0.3586216]
[1743859727758,0.19238,82852.0,82851.0,0.3586216]
[1743859727959,0.17291,82852.0,82851.0,1.8586216]
[1743859728259,0.15344,82852.0,82851.0,1.8586216]
[1743859728457,0.10449852,82852.0,82851.0,1.8586216]
[1743859728759,0.0656,82858.0,82857.0,0.0845065]
[1743859729051,0.3456,82858.0,82857.0,0.0845065]
[1743859729257,0.01847627,82864.0,82863.0,0.0845004]
[1743859729558,0.12,82864.0,82863.0,0.4453004]
[1743859729761,0.12,82864.0,82863.0,0.5090004]
[1743859729943,0.0585,82864.0,82863.0,0.52627092]
[1743859730148,0.0585,82864.0,82863.0,0.59091092]
[1743859730357,0.0585,82864.0,82863.0,0.65367655]
[1743859730557,0.00018097,82872.0,82871.0,0.0844922]
[1743859730859,0.28110097,82872.0,82871.0,0.4993322]
[1743859731059,0.28110097,82872.0,82871.0,0.6899322]
[1743859731559,0.0649,82889.0,82887.0,0.0422379]
[1743859731753,0.0649,82889.0,82888.0,0.1375949]
[1743859731754,0.08064,82889.0,82888.0,0.1375949]
[1743859731951,0.08064,82889.0,82888.0,0.2020349]
[1743859732556,0.08064,82889.0,82888.0,0.1382349]
[1743859734254,0.14704,82889.0,82888.0,0.1382349]
[1743859734455,0.14704,82889.0,82888.0,0.1352349]
[1743859734661,0.14704,82889.0,82888.0,0.12793791]
[1743859734963,0.14704,82889.0,82888.0,0.14824145]
[1743859735162,0.14704,82889.0,82888.0,0.21484145]
[1743859735357,0.14704,82889.0,82888.0,0.14824145]
[1743859737661,0.14704,82889.0,82888.0,0.07402354]
[1743859737862,0.14704,82889.0,82888.0,0.22179844]
[1743859739464,0.14704,82889.0,82888.0,0.15849844]
[1743859740763,0.14704,82889.0,82888.0,0.15120145]
[1743859740965,0.14704,82889.0,82888.0,0.15184145]
[1743859742162,0.14704,82889.0,82888.0,0.1381949]
[1743859742464,0.14704,82889.0,82888.0,0.13384145]
[1743859743065,0.14704,82889.0,82888.0,0.0851149]
[1743859743265,0.14704,82889.0,82888.0,0.0844749]
[1743859743469,0.14704,82889.0,82888.0,0.0851149]
[1743859743652,0.14704,82889.0,82888.0,0.00064]
[1743859743966,0.14704,82889.0,82888.0,0.0851149]
[1743859745168,0.14704,82889.0,82888.0,0.10535582]
[1743859746666,0.0649,82899.0,82888.0,0.10535582]
[1743859746667,0.10319397,82900.0,82899.0,0.0844637]
[1743859746966,0.28454348,82900.0,82899.0,0.00064]
[1743859747267,0.43454348,82900.0,82885.0,0.0845578]
[1743859747464,0.3608,82886.0,82885.0,0.0844778]
[1743859747666,0.3608,82886.0,82885.0,0.0853178]
[1743859747667,0.61164,82886.0,82885.0,0.0853178]
[1743859747965,0.25084,82886.0,82885.0,0.0853178]
[1743859748161,0.25084,82886.0,82885.0,0.1383978]
[1743859749170,0.2165226,82886.0,82885.0,0.5646978]
[1743859749572,0.2165226,82886.0,82885.0,0.1383978]
[1743859749783,0.2165226,82886.0,82885.0,0.05392]
[1743859749962,0.2165226,82886.0,82885.0,0.1163977]
[1743859750867,0.073362,82886.0,82885.0,0.17916333]
[1743859751070,0.05423468,82898.0,82885.0,0.65278563]
[1743859751261,0.0628,82893.0,82886.0,0.05308]
[1743859751455,0.3128,82893.0,82892.0,0.0844708]
[1743859755066,0.31364,82893.0,82892.0,0.0844708]
[1743859755274,0.31364,82893.0,82892.0,0.4459108]
[1743859755275,0.25084,82893.0,82892.0,0.4459108]
[1743859755564,0.17384909,82911.0,82905.0,0.0844576]
[1743859755765,0.28068,82906.0,82905.0,0.00064]
[1743859755966,0.28068,82906.0,82902.0,0.0844604]
[1743859756164,0.28068,82906.0,82905.0,0.0844576]
[1743859757972,0.28068,82906.0,82905.0,0.1500576]
[1743859758270,0.28068,82906.0,82905.0,0.1507376]
[1743859758969,0.28068,82906.0,82905.0,0.06628]
[1743859759169,0.28068,82906.0,82905.0,0.1507376]
[1743859761986,0.28068,82906.0,82905.0,0.09036061]
[1743859762665,0.28068,82906.0,82905.0,0.08836061]
[1743859763671,0.28068,82906.0,82905.0,0.15266061]
[1743859764181,0.28068,82906.0,82905.0,0.08836061]
[1743859765078,0.28068,82906.0,82904.0,0.0422293]
[1743859765376,0.1291,82905.0,82904.0,0.1273279]
[1743859765577,0.39002,82905.0,82904.0,0.1273279]
[1743859768076,0.39002,82905.0,82904.0,0.15140951]
[1743859769985,0.39002,82905.0,82904.0,0.21680951]
[1743859770178,0.3191322,82905.0,82904.0,0.15140951]
[1743859770378,0.2270706,82905.0,82904.0,0.25700951]
[1743859770978,0.0004,82912.0,82911.0,0.0844515]
[1743859771181,0.1500001,82912.0,82911.0,0.41388]
[1743859771478,0.1500001,82912.0,82911.0,0.5659315]
[1743859771784,0.1500001,82912.0,82911.0,0.6935315]
[1743859774178,0.1500001,82912.0,82911.0,0.63315451]
[1743859774973,0.1500001,82912.0,82911.0,0.63395451]
[1743859775178,0.086313,82912.0,82911.0,0.69672014]
[1743859775376,1e-07,82912.0,82911.0,0.69672014]
[1743859777087,1e-07,82912.0,82911.0,0.63634315]
[1743859778490,1e-07,82912.0,82911.0,0.61434315]
[1743859780184,1e-07,82912.0,82911.0,0.55396616]
[1743859783289,1e-07,82912.0,82911.0,0.49358917]
[1743859784191,1e-07,82912.0,82911.0,0.51060916]
[1743859784685,1e-07,82923.0,82922.0,0.0844403]
[1743859784895,0.39,82936.0,82923.0,0.0844392]
[1743859785096,0.32742,82934.0,82933.0,0.0844291]
[1743859785299,0.32742,82934.0,82933.0,0.0851491]
[1743859785589,0.32742,82934.0,82933.0,0.1479491]
[1743859785791,0.32742,82934.0,82933.0,0.2111491]
[1743859785981,0.26072,82934.0,82933.0,0.2111491]
[1743859786181,0.26072,82934.0,82933.0,0.12672]
[1743859786493,0.0468196,82944.0,82943.0,0.0844189]
[1743859786785,0.41777961,82944.0,82929.0,0.0844328]
[1743859786988,0.7216,82930.0,82918.0,0.00096]
[1743859787180,0.3608,82919.0,82914.0,8e-05]
[1743859787381,0.60144,82919.0,82918.0,0.0844443]
[1743859787895,0.75144,82919.0,82918.0,0.0844443]
[1743859788190,0.81734,82919.0,82916.0,0.0844464]
[1743859788387,0.66734,82919.0,82918.0,0.0844443]
[1743859788782,0.66734,82919.0,82916.0,0.084446]
[1743859788982,0.66734,82919.0,82918.0,0.0844443]
[1743859789184,0.66734,82919.0,82910.0,0.00018086]
[1743859789490,0.3608,82911.0,82910.0,0.12685926]
[1743859789792,0.63144,82911.0,82910.0,0.12749926]
[1743859792283,0.63144,82911.0,82910.0,0.15157477]
[1743859792890,0.63144,82911.0,82910.0,0.12957477]
[1743859795397,0.63144,82911.0,82910.0,0.06919778]
[1743859795590,0.63144,82911.0,82910.0,0.11142368]
[1743859795795,0.63144,82911.0,82910.0,0.11206368]
[1743859798487,0.63144,82911.0,82910.0,0.1266784]
[1743859798687,0.63144,82911.0,82910.0,0.1274384]
[1743859799898,0.63144,82911.0,82910.0,0.0429859]
[1743859800192,0.63144,82911.0,82907.0,8e-05]
[1743859800393,0.1319,82910.0,82904.0,0.0845376]
[1743859800594,0.3608,82905.0,82904.0,0.0715376]
[1743859800797,0.60156,82905.0,82902.0,0.00018086]
[1743859800992,0.1996,82904.0,82902.0,0.02479477]
[1743859801189,0.46036,82904.0,82895.0,0.6581938]
[1743859801384,0.3608,82896.0,82895.0,0.59837681]
[1743859801585,0.63156,82896.0,82889.0,0.02547476]
[1743859801794,0.3608,82890.0,82889.0,0.0844737]
[1743859801999,0.63184001,82890.0,82889.0,0.0844737]
[1743859803791,0.78184001,82890.0,82881.0,0.00026086]
[1743859803993,0.3608,82882.0,82871.0,0.00923877]
[1743859804195,0.1331,82881.0,82880.0,0.0844822]
[1743859804401,0.74494001,82881.0,82880.0,0.0851222]
[1743859804695,0.89494001,82881.0,82875.0,8e-05]
[1743859804903,0.74494001,82881.0,82869.0,0.0844939]
[1743859805089,0.3608,82870.0,82868.0,8e-05]
[1743859805289,0.3608,82870.0,82866.0,0.6158]
[1743859805290,0.202,82869.0,82867.0,0.00018097]
[1743859805498,0.202,82869.0,82852.0,0.0651]
[1743859805499,0.3608,82868.0,82850.0,0.0422565]
[1743859805696,0.3608,82868.0,82846.0,0.0637]
[1743859805697,0.1344,82867.0,82862.0,8e-05]
[1743859805900,0.3608,82865.0,82851.0,0.00060349]
[1743859806102,0.3608,82852.0,82851.0,0.04285949]
[1743859806296,0.5908,82852.0,82851.0,0.04285949]
[1743859806495,0.5918,82852.0,82851.0,0.04285949]
[1743859806701,0.5918,82852.0,82851.0,0.00060349]
[1743859807089,0.231,82852.0,82851.0,0.08511609]
[1743859807289,0.1768661,82852.0,82851.0,0.08511609]
[1743859807494,0.1768661,82852.0,82850.0,0.0845135]
[1743859807495,0.1768661,82852.0,82848.0,0.084515]
[1743859807803,0.3608,82849.0,82847.0,0.06276563]
[1743859808099,0.1339,82848.0,82838.0,0.05308]
[1743859808402,0.27096001,82848.0,82847.0,0.0845167]
[1743859809892,0.27096001,82848.0,82847.0,0.05308]
[1743859810595,0.27096001,82848.0,82846.0,0.0845168]
[1743859810787,0.069,82847.0,82846.0,0.0845168]
[1743859810993,0.339,82847.0,82846.0,0.0845168]
[1743859811891,0.339,82847.0,82845.0,0.1520178]
[1743859812092,0.339,82847.0,82846.0,0.0845177]
[1743859812498,0.339,82847.0,82846.0,0.1524177]
[1743859813699,0.34,82847.0,82846.0,0.0679]
[1743859813898,0.34,82847.0,82846.0,0.1352]
[1743859814297,0.34,82847.0,82843.0,0.02574513]
[1743859814501,0.3608,82844.0,82839.0,0.00012108]
[1743859814703,0.1286,82843.0,82841.0,8e-05]
[1743859815001,0.1286,82843.0,82839.0,0.00012108]
[1743859815002,0.39956001,82843.0,82839.0,0.00012108]
[1743859815187,0.39956001,82843.0,82839.0,0.00084108]
[1743859815501,0.3608,82840.0,82839.0,0.00084108]
[1743859815699,0.61184001,82840.0,82839.0,0.00084108]
[1743859816592,0.61184001,82840.0,82834.0,0.55630409]
[1743859816903,0.0646,82839.0,82835.0,0.0845289]
[1743859817202,0.37424001,82839.0,82835.0,0.0851689]
[1743859817702,0.37424001,82839.0,82837.0,0.0422634]
[1743859817905,0.37424001,82839.0,82837.0,0.0429434]
[1743859818205,0.37424001,82839.0,82838.0,0.0845259]
[1743859818406,0.37424001,82839.0,82838.0,0.0851659]
[1743859818602,0.37424001,82839.0,82838.0,0.00064]
[1743859818898,0.37424001,82839.0,82838.0,0.0851659]
[1743859819199,0.37424001,82839.0,82838.0,0.00064]
[1743859819407,0.37424001,82839.0,82825.0,0.0845384]
[1743859819408,0.0422631,82838.0,82825.0,0.0845384]
[1743859819599,0.7216,82826.0,82825.0,0.0845384]
[1743859819806,0.99296,82826.0,82825.0,0.0851783]
[1743859820000,0.99296,82826.0,82825.0,0.0845383]
[1743859822698,0.99296,82826.0,82824.0,0.1065701]
[1743859822899,0.1355,82825.0,82824.0,0.1911103]
[1743859823101,0.38,82838.0,82837.0,0.0845269]
[1743859823300,0.5681,82865.0,82862.0,0.0845011]
[1743859823599,0.00136,82858.0,82857.0,0.0845065]
[1743859823807,0.4966,82865.0,82859.0,0.0845041]
[1743859824007,0.7666,82865.0,82859.0,0.0845041]
[1743859824199,0.6948,82865.0,82864.0,0.0844994]
[1743859824504,0.27148,82865.0,82864.0,0.10892291]
[1743859825007,0.27148,82865.0,82864.0,0.17862291]
[1743859825710,0.27148,82865.0,82864.0,0.09412351]
[1743859826004,0.27148,82865.0,82864.0,0.17862291]
[1743859828810,0.27148,82865.0,82864.0,0.11824592]
[1743859830815,0.04947365,82865.0,82864.0,0.143668]
[1743859831007,0.04799365,82865.0,82864.0,0.197548]
[1743859831805,4e-08,82870.0,82869.0,0.0844943]
[1743859832103,0.27000004,82870.0,82869.0,0.4452943]
[1743859832316,0.16230004,82870.0,82869.0,0.4452943]
[1743859833011,0.12698554,82870.0,82869.0,0.65805993]
[1743859833202,0.38,82883.0,82869.0,0.65805993]
[1743859833203,0.29521637,82883.0,82882.0,0.084481]
[1743859833402,0.18136,82883.0,82882.0,0.56188663]
[1743859833611,0.18,82883.0,82882.0,0.56188663]
[1743859834308,0.00018109,82891.0,82890.0,0.0844729]
[1743859834519,0.25018109,82891.0,82890.0,0.50803853]
[1743859834714,0.10273449,82891.0,82890.0,0.65803853]
[1743859835013,0.25,82904.0,82903.0,0.0844596]
[1743859835214,0.28,82904.0,82903.0,0.5414089]
[1743859837018,0.28,82904.0,82903.0,0.55065061]
[1743859837414,0.28140001,82904.0,82903.0,0.55065061]
[1743859838116,0.28140001,82904.0,82903.0,0.46619101]
[1743859838309,0.28140001,82904.0,82903.0,0.55065061]
[1743859838707,0.28140001,82904.0,82903.0,0.13593061]
[1743859839019,0.28140001,82904.0,82903.0,0.18977061]
[1743859839207,0.28140001,82904.0,82903.0,0.13593061]
[1743859839406,0.28140001,82904.0,82903.0,0.20273061]
[1743859839609,0.28140001,82904.0,82903.0,0.27383061]
[1743859839820,0.28140001,82904.0,82903.0,0.33659624]
[1743859840016,0.28,82904.0,82903.0,0.33659624]
[1743859840207,0.26819548,82904.0,82903.0,0.33659624]
[1743859840908,0.26819548,82904.0,82903.0,0.0711]
[1743859841107,0.26955548,82904.0,82898.0,8e-05]
[1743859841408,0.2057,82903.0,82901.0,0.0844614]
[1743859841615,0.46706,82903.0,82896.0,0.0844668]
[1743859841812,0.46706,82903.0,82895.0,0.00018097]
[1743859842119,0.46706,82903.0,82899.0,0.0844636]
[1743859842321,0.46706,82903.0,82900.0,0.0844625]
[1743859842510,0.46706,82903.0,82899.0,0.0422316]
[1743859842705,0.46706,82903.0,82901.0,0.0844612]
[1743859843117,0.46706,82903.0,82901.0,0.168922]
[1743859843321,0.46706,82903.0,82902.0,0.0844606]
[1743859843509,0.46706,82903.0,82902.0,0.1492606]
[1743859844014,0.46706,82903.0,82902.0,0.0648]
[1743859844218,0.46706,82903.0,82902.0,0.1492606]
[1743859845718,0.46706,82903.0,82902.0,0.0624606]
[1743859847118,0.46706,82903.0,82901.0,0.0844608]
[1743859847419,0.46706,82903.0,82902.0,0.0844606]
[1743859848314,0.46706,82903.0,82902.0,0.1558606]
[1743859849512,0.26136,82903.0,82902.0,0.2268606]
[1743859849711,0.1263359,82903.0,82902.0,0.65042623]
[1743859850116,0.1263359,82903.0,82902.0,0.65106623]
[1743859850311,1e-07,82903.0,82902.0,0.65106623]
[1743859851316,1e-07,82903.0,82902.0,2.15106623]
[1743859853122,1e-07,82903.0,82902.0,2.09068924]
[1743859853321,1e-07,82903.0,82902.0,2.06868924]
[1743859853522,1e-07,82903.0,82902.0,2.21868924]
[1743859853719,7e-08,82912.0,82911.0,0.0844515]
[1743859853923,0.27096008,82912.0,82911.0,0.56225713]
[1743859855219,8e-08,82912.0,82911.0,0.56225713]
[1743859856417,8e-08,82912.0,82911.0,0.71225713]
[1743859856620,5e-08,82920.0,82919.0,0.0844433]
[1743859856817,0.26000005,82920.0,82919.0,1.0610433]
[1743859857026,0.26000005,82920.0,82919.0,1.2043433]
[1743859858023,0.26000005,82920.0,82919.0,1.1873233]
[1743859858326,0.26000005,82920.0,82919.0,1.1145233]
[1743859858713,0.26,82920.0,82919.0,1.2511233]
[1743859858920,0.22764185,82920.0,82919.0,1.2511233]
[1743859859118,0.07648115,82920.0,82919.0,1.16668]
[1743859859320,0.01630905,82920.0,82919.0,1.2511233]
[1743859859719,0.0726,82932.0,82931.0,0.0844311]
[1743859859919,0.0696,82937.0,82936.0,0.084426]
[1743859860126,0.3296,82937.0,82936.0,0.17058561]
[1743859860328,0.33028,82937.0,82936.0,0.17058561]
[1743859860828,0.33028,82937.0,82936.0,0.23888561]
[1743859861127,0.26068,82937.0,82936.0,0.15158561]
[1743859861327,0.1743389,82937.0,82936.0,0.28978561]
[1743859861528,0.1736589,82937.0,82936.0,0.28978561]
[1743859861725,0.0714,82947.0,82946.0,0.0844158]
[1743859861927,0.25208,82947.0,82946.0,0.0844158]
[1743859862125,0.25208,82947.0,82946.0,0.0850958]
[1743859862829,0.25208,82947.0,82946.0,0.1554958]
[1743859863739,0.25208,82947.0,82946.0,0.2253958]
[1743859864930,0.1118998,82947.0,82946.0,0.2253958]
[1743859865117,0.1154362,82950.0,82949.0,0.0844128]
[1743859865324,0.282447,82950.0,82949.0,0.20141843]
[1743859865626,0.283127,82950.0,82949.0,0.33791843]
[1743859865814,0.00011991,82955.0,82954.0,0.0844077]
[1743859866125,0.11107992,82955.0,82954.0,0.4461677]
[1743859866327,0.11107992,82955.0,82954.0,0.5826677]
[1743859867931,0.07808882,82955.0,82954.0,0.4461677]
[1743859868127,0.07712881,82955.0,82954.0,0.4996077]
[1743859868425,0.07808882,82955.0,82954.0,0.4996077]
[1743859868925,0.07808882,82955.0,82954.0,0.4846077]
[1743859870634,0.07808882,82955.0,82954.0,0.4311677]
[1743859870834,0.07808882,82955.0,82954.0,0.4845277]
[1743859871426,0.07808882,82955.0,82954.0,0.42415071]
[1743859871625,0.07808882,82955.0,82954.0,0.49365071]
[1743859872333,0.07808882,82955.0,82954.0,0.58038881]
[1743859873119,0.07808882,82955.0,82954.0,0.56315071]
[1743859874334,0.07808882,82955.0,82954.0,0.50277372]
[1743859876538,0.07808882,82955.0,82954.0,0.49777372]
[1743859877346,0.07808882,82955.0,82954.0,0.43739673]
[1743859878143,0.07808882,82955.0,82954.0,0.50016236]
[1743859878735,0.07808882,82955.0,82954.0,0.43066236]
[1743859880646,0.07808882,82955.0,82954.0,0.44148537]
[1743859880841,0.07808882,82955.0,82954.0,0.31778351]
[1743859881034,0.07808882,82955.0,82954.0,0.30062537]
[1743859881340,0.07808882,82955.0,82954.0,0.30070537]
[1743859882048,0.07808882,82955.0,82954.0,0.12083974]
[1743859882544,0.07808882,82955.0,82954.0,0.12091974]
[1743859883542,0.07808882,82955.0,82951.0,8e-05]
[1743859883736,0.3608,82952.0,82951.0,8e-05]
[1743859883936,0.6408,82952.0,82948.0,0.05332]
[1743859884239,0.15,82951.0,82950.0,0.0634118]
[1743859884439,0.43,82951.0,82950.0,0.0634118]
[1743859885245,0.58068,82951.0,82947.0,8e-05]
[1743859885438,0.58068,82951.0,82946.0,0.0523702]
[1743859885644,0.43068,82951.0,82948.0,0.0844137]
[1743859885844,0.43068,82951.0,82949.0,0.0844124]
[1743859886047,0.58068,82951.0,82950.0,0.0844118]
[1743859886547,0.58068,82951.0,82943.0,8e-05]
[1743859886850,0.3608,82944.0,82936.0,0.07417221]
[1743859887038,0.1447,82943.0,82942.0,0.0844199]
[1743859887239,0.4257,82943.0,82942.0,0.0850599]
[1743859887543,0.5757,82943.0,82942.0,0.0844199]
[1743859888839,0.6483,82943.0,82942.0,0.0844199]
[1743859889042,0.4983,82943.0,82942.0,0.0844199]
[1743859889251,0.4983,82943.0,82942.0,0.0850599]
[1743859889434,0.4257,82943.0,82942.0,0.0850599]
[1743859889636,0.4257,82943.0,82942.0,0.1383399]
[1743859889837,0.4257,82943.0,82942.0,0.2144399]
[1743859891450,0.4257,82943.0,82942.0,0.05392]
[1743859891747,0.4257,82943.0,82942.0,0.1376999]
[1743859892145,0.4257,82943.0,82942.0,0.1156999]
[1743859892553,0.4257,82943.0,82940.0,0.0845012]
[1743859892757,0.4257,82943.0,82942.0,0.0844199]
[1743859894057,0.281,82943.0,82942.0,0.0844199]
[1743859894258,0.281,82943.0,82942.0,0.2328199]
[1743859894941,0.281,82943.0,82942.0,0.25021097]
[1743859895651,0.39,82956.0,82955.0,0.0844067]
[1743859895851,0.0735,82961.0,82960.0,0.0844016]
[1743859896053,0.3435,82961.0,82960.0,0.0844016]
[1743859896250,0.3435,82961.0,82960.0,0.1550016]
[1743859896450,0.3435,82961.0,82960.0,0.2268016]
[1743859897452,0.34446001,82961.0,82960.0,0.2268016]
[1743859898349,0.34446001,82961.0,82960.0,0.1550016]
[1743859899452,0.34446001,82961.0,82960.0,0.2311016]
[1743859899647,0.34446001,82961.0,82960.0,0.2091016]
[1743859901065,0.25887873,82961.0,82960.0,0.5699016]
[1743859901375,0.24679745,82961.0,82960.0,0.5699016]
[1743859901762,0.24679745,82961.0,82960.0,0.50952461]
[1743859903462,0.24679745,82961.0,82960.0,0.56268461]
[1743859903666,0.24020004,82961.0,82960.0,0.56268461]
[1743859904768,0.24020004,82961.0,82960.0,0.49006]
[1743859904969,0.24020004,82961.0,82960.0,0.56386]
[1743859905372,0.24020004,82961.0,82960.0,0.6482616]
[1743859906376,0.24020004,82961.0,82960.0,0.66570466]
[1743859906873,0.24020004,82961.0,82960.0,0.66566466]
[1743859907377,0.24020004,82961.0,82960.0,0.64866466]
[1743859907877,0.24020004,82961.0,82960.0,0.58828767]
[1743859910071,0.15120004,82961.0,82960.0,0.58828767]
[1743859910271,0.15024003,82961.0,82960.0,0.58828767]
[1743859910876,0.15024003,82961.0,82960.0,0.52791068]
[1743859911477,0.15024003,82961.0,82960.0,0.45734762]
[1743859911681,0.15024003,82961.0,82960.0,0.51038762]
[1743859912576,0.13524003,82961.0,82960.0,0.51038762]
[1743859912779,0.13524003,82961.0,82960.0,0.58518762]
[1743859913368,0.11958403,82961.0,82960.0,0.58518762]
[1743859913780,0.11958403,82961.0,82960.0,0.52481063]
[1743859915281,0.11958403,82961.0,82960.0,0.50357063]
[1743859916771,0.11958403,82961.0,82960.0,0.44319364]
[1743859917082,0.11958403,82961.0,82960.0,0.36839364]
[1743859917284,0.11958403,82961.0,82960.0,0.0851616]
[1743859917470,0.12054404,82961.0,82960.0,0.0851616]
[1743859917671,0.26924404,82961.0,82960.0,0.0851616]
[1743859920889,0.26924404,82961.0,82960.0,1.5851616]
[1743859921178,0.26828403,82961.0,82960.0,1.5851616]
[1743859921377,0.26828403,82961.0,82960.0,1.6596616]
[1743859921985,0.26828403,82961.0,82960.0,1.67726242]
[1743859922883,0.26828403,82961.0,82960.0,1.66920082]
[1743859923084,0.26828403,82961.0,82960.0,1.67650242]
[1743859923284,0.26828403,82961.0,82960.0,0.10200242]
[1743859923679,0.26828403,82961.0,82960.0,0.0844016]
[1743859923875,0.41948404,82961.0,82958.0,0.06276563]
[1743859924071,0.3483177,82959.0,82955.0,8e-05]
[1743859924277,0.0763,82958.0,82950.0,0.0844111]
[1743859924487,0.0763,82958.0,82950.0,0.0844118]
[1743859924488,0.3608,82951.0,82950.0,0.0844118]
[1743859924779,0.5883177,82951.0,82946.0,0.0844153]
[1743859925078,0.3483177,82947.0,82939.0,8e-05]
[1743859925282,0.3608,82940.0,82933.0,8e-05]
[1743859925479,0.3608,82940.0,82905.0,0.0422284]
[1743859925480,0.3608,82934.0,82905.0,0.0422284]
[1743859925781,0.3608,82924.0,82923.0,0.08504217]
[1743859925984,0.7908,82924.0,82922.0,0.02773316]
[1743859926187,0.7908,82924.0,82916.0,8e-05]
[1743859926383,0.3608,82917.0,82916.0,8e-05]
[1743859926588,0.6008,82917.0,82916.0,0.0845264]
[1743859927090,0.6008,82917.0,82916.0,0.0844464]
[1743859927581,0.6008,82917.0,82916.0,0.11142653]
[1743859927979,0.6008,82917.0,82916.0,0.18502653]
[1743859928582,0.24,82917.0,82916.0,0.18502653]
[1743859928788,0.24,82917.0,82916.0,1.68502653]
[1743859928989,0.24,82917.0,82916.0,1.60058013]
[1743859929183,0.23973914,82917.0,82916.0,2.06352319]
[1743859930587,0.23973914,82917.0,82916.0,2.04224319]
[1743859930993,0.23973914,82917.0,82916.0,2.10500882]
[1743859931991,0.23973914,82917.0,82916.0,2.04463183]
[1743859932494,0.23973914,82917.0,82916.0,2.07179559]
[1743859933791,0.23973914,82917.0,82916.0,1.71099559]
[1743859933985,0.23973914,82917.0,82916.0,0.26411559]
[1743859934187,0.24097915,82917.0,82916.0,0.21099559]
[1743859934387,0.24097915,82917.0,82916.0,0.26411559]
[1743859934780,0.24097915,82917.0,82916.0,0.24641893]
[1743859934992,0.24097915,82917.0,82916.0,0.18604194]
[1743859935784,0.16681905,82917.0,82916.0,0.26184194]
[1743859935989,0.7708,82930.0,82929.0,0.0844331]
[1743859936185,0.3808,82930.0,82929.0,0.1375531]
[1743859936385,0.02,82930.0,82929.0,0.1375531]
[1743859938087,0.02,82930.0,82929.0,0.05312]
[1743859938281,0.02,82930.0,82929.0,0.1195531]
[1743859939080,0.02,82930.0,82929.0,0.1971531]
[1743859939495,0.02,82930.0,82929.0,0.2699531]
[1743859940291,0.0208,82930.0,82929.0,0.2705931]
[1743859941090,0.0208,82930.0,82929.0,0.26329611]